bitfinex/quotes_BTCUSD_20240712
["timestamp","ask_amount","ask_price","bid_price","bid_amount"]
[1720767006827,0.725475,57430.0,57429.0,0.0785]
[1720767007596,1.073725,57430.0,57429.0,0.0785]
[1720767008296,1.074725,57430.0,57429.0,0.0785]
[1720767008473,1.073725,57430.0,57429.0,0.0785]
[1720767009309,1.073725,57430.0,57421.0,0.05254735]
[1720767009310,0.522438,57423.0,57422.0,0.0825]
[1720767009566,0.725538,57423.0,57422.0,0.0825]
[1720767009883,1.07383,57423.0,57422.0,0.0825]
[1720767010289,1.422122,57423.0,57422.0,0.0825]
[1720767010490,1.422122,57423.0,57417.0,0.0763]
[1720767010491,0.174161,57418.0,57417.0,0.0763]
[1720767010706,0.522483,57418.0,57417.0,0.1943]
[1720767010880,0.77925736,57418.0,57417.0,0.1943]
[1720767011090,0.970805,57418.0,57417.0,0.1943]
[1720767011716,0.1,57418.0,57417.0,0.2573]
[1720767012142,0.274161,57418.0,57417.0,0.2593]
[1720767012984,0.276161,57418.0,57417.0,0.2593]
[1720767013422,0.274161,57418.0,57417.0,0.2573]
[1720767013883,0.276161,57418.0,57417.0,0.2663]
[1720767014839,0.276161,57418.0,57417.0,0.1483]
[1720767015215,0.276161,57418.0,57417.0,0.149213]
[1720767015817,0.275161,57418.0,57417.0,0.144213]
[1720767016051,0.276161,57418.0,57417.0,0.267213]
[1720767016467,0.276161,57418.0,57417.0,0.263213]
[1720767016468,0.275161,57418.0,57417.0,0.263213]
[1720767016681,0.971805,57418.0,57417.0,0.200213]
[1720767016915,0.972805,57418.0,57417.0,0.204213]
[1720767017731,0.971805,57418.0,57417.0,0.200213]
[1720767017962,0.971805,57418.0,57417.0,0.123913]
[1720767018136,0.973805,57418.0,57417.0,0.118913]
[1720767018961,0.970805,57418.0,57417.0,0.118913]
[1720767019377,0.970805,57418.0,57417.0,0.122913]
[1720767020012,0.970805,57418.0,57417.0,0.126913]
[1720767020985,0.969305,57418.0,57417.0,0.126913]
[1720767021396,0.969305,57418.0,57417.0,0.008913]
[1720767021598,1.47430006,57418.0,57417.0,0.008913]
[1720767021777,1.317627,57418.0,57417.0,0.008913]
[1720767022393,1.317627,57418.0,57417.0,0.004913]
[1720767022793,1.317627,57418.0,57417.0,0.005913]
[1720767023190,1.317627,57418.0,57417.0,0.004913]
[1720767023767,1.320627,57418.0,57417.0,0.000913]
[1720767023967,1.320627,57418.0,57417.0,0.001913]
[1720767024400,1.320627,57418.0,57417.0,0.000913]
[1720767024617,1.713149,57418.0,57417.0,0.000913]
[1720767024831,1.775849,57418.0,57417.0,0.000913]
[1720767025036,1.9521062,57418.0,57417.0,0.000913]
[1720767025251,1.67190612,57418.0,57417.0,0.000913]
[1720767025456,1.66680992,57418.0,57417.0,0.000913]
[1720767025617,1.66980992,57418.0,57417.0,0.000913]
[1720767026862,1.21758792,57418.0,57417.0,0.000913]
[1720767027002,1.42368792,57418.0,57417.0,0.082513]
[1720767027643,1.52368792,57418.0,57417.0,0.082513]
[1720767028520,0.628483,57418.0,57417.0,0.148913]
[1720767028664,0.976805,57418.0,57417.0,0.148913]
[1720767029427,0.973805,57418.0,57417.0,0.148913]
[1720767029842,0.975805,57418.0,57417.0,0.082513]
[1720767030347,1.385127,57418.0,57417.0,0.000913]
[1720767030641,1.387127,57418.0,57417.0,0.002913]
[1720767030796,1.5573644,57418.0,57417.0,0.002913]
[1720767031679,1.5553644,57418.0,57417.0,0.002913]
[1720767031876,1.388127,57418.0,57417.0,0.000913]
[1720767032236,1.387127,57418.0,57417.0,0.000913]
[1720767032442,1.735449,57418.0,57417.0,0.000913]
[1720767032642,1.385127,57418.0,57417.0,0.000913]
[1720767032845,1.5553644,57418.0,57417.0,0.000913]
[1720767033069,1.73557075,57418.0,57417.0,0.000913]
[1720767033445,1.5593644,57418.0,57417.0,0.000913]
[1720767033640,1.73557075,57418.0,57417.0,0.000913]
[1720767034432,1.5593644,57418.0,57417.0,0.000913]
[1720767034864,1.5613644,57418.0,57417.0,0.000913]
[1720767035230,1.5593644,57418.0,57417.0,0.000913]
[1720767035382,1.5633644,57418.0,57417.0,0.000913]
[1720767036456,1.596227,57418.0,57417.0,0.000913]
[1720767036750,1.393127,57418.0,57417.0,0.000913]
[1720767036926,1.596227,57418.0,57417.0,0.000913]
[1720767039949,1.530227,57418.0,57417.0,0.078913]
[1720767040656,1.68668332,57418.0,57417.0,0.078913]
[1720767041147,1.530227,57418.0,57417.0,0.078913]
[1720767042147,1.522227,57418.0,57417.0,0.078913]
[1720767043330,1.67868332,57418.0,57417.0,0.078913]
[1720767043686,1.67868737,57418.0,57417.0,0.078913]
[1720767044513,1.522227,57418.0,57417.0,0.078913]
[1720767049204,1.319127,57418.0,57417.0,0.078913]
[1720767049336,1.67958622,57418.0,57417.0,0.078913]
[1720767049744,0.826413,57418.0,57417.0,0.28509088]
[1720767050368,1.174735,57418.0,57417.0,0.28202735]
[1720767050569,1.052935,57418.0,57417.0,0.16402735]
[1720767050870,1.052935,57418.0,57417.0,0.28202735]
[1720767051466,1.20946422,57418.0,57417.0,0.28202735]
[1720767052407,1.21346422,57418.0,57417.0,0.28202735]
[1720767052577,1.056935,57418.0,57417.0,0.196913]
[1720767052801,1.052935,57418.0,57417.0,0.196913]
[1720767052992,1.056935,57418.0,57417.0,0.196913]
[1720767053136,1.056935,57418.0,57417.0,0.199913]
[1720767053345,1.052935,57418.0,57417.0,0.199913]
[1720767054003,1.052935,57418.0,57417.0,0.081913]
[1720767056517,1.051435,57418.0,57417.0,0.081913]
[1720767059413,1.22791383,57418.0,57417.0,0.081913]
[1720767060800,1.22793816,57418.0,57417.0,0.081913]
[1720767061259,1.22793815,57418.0,57417.0,0.081913]
[1720767064423,1.2279721,57418.0,57417.0,0.081913]
[1720767065082,1.2279721,57418.0,57417.0,0.199913]
[1720767066278,1.051435,57418.0,57417.0,0.199913]
[1720767066460,1.051435,57418.0,57417.0,0.081913]
[1720767067272,1.22799583,57418.0,57417.0,0.081913]
[1720767067656,1.051435,57418.0,57417.0,0.081913]
[1720767068893,1.2279994,57418.0,57417.0,0.081913]
[1720767069703,1.051435,57418.0,57417.0,0.081913]
[1720767071424,1.814479,57418.0,57417.0,0.003913]
[1720767072284,1.814479,57418.0,57417.0,0.000913]
[1720767072762,1.818479,57418.0,57417.0,0.000913]
[1720767072984,1.822479,57418.0,57417.0,0.000913]
[1720767073180,1.818479,57418.0,57417.0,0.000913]
[1720767073380,1.822479,57418.0,57417.0,0.000913]
[1720767076180,2.3410384,57418.0,57417.0,0.000913]
[1720767076436,2.35924728,57418.0,57417.0,0.000913]
[1720767079100,2.55924728,57418.0,57417.0,0.000913]
[1720767079567,2.35924728,57418.0,57417.0,0.000913]
[1720767081844,2.35924728,57418.0,57411.0,0.05914542]
[1720767081845,0.0666,57413.0,57411.0,0.05914542]
[1720767082005,0.296679,57412.0,57411.0,0.05914542]
[1720767082205,1.093397,57412.0,57411.0,0.010119]
[1720767082408,2.138474,57412.0,57411.0,0.010119]
[1720767082605,2.203774,57412.0,57411.0,0.010119]
[1720767082809,2.3740114,57412.0,57411.0,0.010119]
[1720767083567,2.78793539,57412.0,57411.0,0.010119]
[1720767083699,2.78793539,57412.0,57400.0,0.13362859]
[1720767083700,0.174212,57401.0,57400.0,0.13362859]
[1720767083901,1.0697832,57401.0,57400.0,0.13362859]
[1720767084129,1.0697832,57401.0,57400.0,0.084408]
[1720767084130,1.4182082,57401.0,57400.0,0.084408]
[1720767085377,1.400787,57401.0,57400.0,0.084408]
[1720767086397,1.400787,57401.0,57400.0,0.009108]
[1720767086803,1.749212,57401.0,57400.0,0.009108]
[1720767087042,1.755212,57401.0,57400.0,0.009108]
[1720767087882,1.760212,57401.0,57400.0,0.009108]
[1720767088094,1.9304494,57401.0,57400.0,0.009108]
[1720767093742,1.9244494,57401.0,57400.0,0.009108]
[1720767094223,1.95652913,57401.0,57400.0,0.009108]
[1720767094431,1.93952913,57401.0,57400.0,0.009108]
[1720767094654,1.95052913,57401.0,57400.0,0.009108]
[1720767094858,1.95052913,57401.0,57391.0,0.001]
[1720767094859,1.219809,57386.0,57385.0,0.00960621]
[1720767095040,1.401109,57386.0,57385.0,0.00960621]
[1720767096206,1.66681039,57386.0,57385.0,0.00960621]
[1720767097245,1.219851,57384.0,57383.0,0.009108]
[1720767097451,1.319851,57384.0,57383.0,0.009108]
[1720767097610,1.48653624,57384.0,57383.0,0.009108]
[1720767098728,1.49053624,57384.0,57383.0,0.009108]
[1720767098928,1.83906524,57384.0,57383.0,0.009108]
[1720767099154,1.49053624,57384.0,57383.0,0.009108]
[1720767099784,1.59053624,57384.0,57382.0,0.009108]
[1720767099964,0.52282,57381.0,57380.0,0.034108]
[1720767100171,0.971367,57381.0,57380.0,0.034108]
[1720767100379,1.319914,57381.0,57380.0,0.034108]
[1720767101436,1.319914,57381.0,57380.0,0.172608]
[1720767101652,0.971367,57381.0,57380.0,0.172608]
[1720767101835,1.064667,57381.0,57380.0,0.172608]
[1720767102010,1.075667,57381.0,57380.0,0.172608]
[1720767102414,1.064667,57381.0,57380.0,0.172608]
[1720767103123,0.63482,57381.0,57380.0,0.290608]
[1720767103324,1.064667,57381.0,57380.0,0.172608]
[1720767103915,1.069667,57381.0,57380.0,0.172608]
[1720767104111,1.5600339,57381.0,57380.0,0.172608]
[1720767104568,1.5480339,57381.0,57380.0,0.172608]
[1720767104739,1.5590339,57381.0,57380.0,0.172608]
[1720767105121,1.057667,57381.0,57380.0,0.172608]
[1720767105382,0.70912,57381.0,57380.0,0.290608]
[1720767105764,1.057667,57381.0,57380.0,0.290608]
[1720767105958,1.063667,57381.0,57380.0,0.290608]
[1720767106571,1.185867,57381.0,57380.0,0.290608]
[1720767106822,1.185867,57381.0,57380.0,0.172608]
[1720767107954,1.86886338,57381.0,57380.0,0.034108]
[1720767108732,1.80606338,57381.0,57380.0,0.034108]
[1720767110325,1.65262288,57381.0,57380.0,0.034108]
[1720767111593,1.65112288,57381.0,57380.0,0.034108]
[1720767117169,1.65195288,57381.0,57380.0,0.034108]
[1720767117396,1.65195288,57381.0,57376.0,0.009108]
[1720767117397,1.55975899,57380.0,57376.0,0.009108]
[1720767117600,0.274291,57375.0,57374.0,0.009108]
[1720767117801,1.62354,57375.0,57374.0,0.009108]
[1720767118415,1.972123,57375.0,57374.0,0.009108]
[1720767119090,0.1,57372.0,57364.0,0.0805]
[1720767119286,0.1,57372.0,57361.0,0.0805]
[1720767119287,0.68313,57369.0,57361.0,0.0805]
[1720767119412,0.68313,57369.0,57358.0,0.0617]
[1720767119413,0.523012,57360.0,57358.0,0.0617]
[1720767119641,0.971687,57360.0,57358.0,0.0617]
[1720767119845,1.320362,57360.0,57358.0,0.0617]
[1720767120042,0.623012,57360.0,57359.0,0.23642235]
[1720767120248,0.1,57360.0,57359.0,0.35442235]
[1720767120653,0.348658,57363.0,57362.0,0.0805]
[1720767120859,0.971644,57363.0,57362.0,0.0805]
[1720767121273,0.971644,57363.0,57362.0,0.0775]
[1720767121664,0.971644,57363.0,57362.0,0.1955]
[1720767121979,0.971644,57363.0,57362.0,0.2598]
[1720767122344,0.971644,57363.0,57362.0,0.2568]
[1720767122544,0.622986,57363.0,57362.0,0.2568]
[1720767122771,0.1,57363.0,57362.0,0.2568]
[1720767122966,0.174322,57365.0,57364.0,0.112]
[1720767123132,0.622966,57365.0,57364.0,0.1724]
[1720767123345,0.97161,57365.0,57364.0,0.1724]
[1720767123954,1.4726284,57365.0,57364.0,0.0604]
[1720767124253,1.325254,57365.0,57364.0,0.0604]
[1720767125243,0.348665,57362.0,57360.0,0.0638]
[1720767125445,0.477834,57361.0,57360.0,0.1425]
[1720767125644,0.826502,57361.0,57360.0,0.1425]
[1720767125880,0.826502,57361.0,57360.0,0.2545]
[1720767126076,1.17517,57361.0,57360.0,0.2545]
[1720767126437,1.17517,57361.0,57360.0,0.1425]
[1720767126998,1.17517,57361.0,57360.0,0.2545]
[1720767127185,1.17517,57361.0,57360.0,0.2555]
[1720767127546,0.826502,57361.0,57360.0,0.2565]
[1720767127851,1.17517,57361.0,57360.0,0.2565]
[1720767128172,0.826502,57361.0,57360.0,0.2565]
[1720767128430,0.274334,57361.0,57360.0,0.2565]
[1720767128604,0.623002,57361.0,57360.0,0.2565]
[1720767130341,1.6210041,57361.0,57360.0,0.002]
[1720767130568,0.826502,57361.0,57360.0,0.114]
[1720767130790,0.826502,57361.0,57360.0,0.2548]
[1720767133167,0.94084446,57361.0,57360.0,0.2548]
[1720767133394,1.28951246,57361.0,57360.0,0.1428]
[1720767133826,1.63818046,57361.0,57360.0,0.1428]
[1720767134040,1.498838,57361.0,57360.0,0.1428]
[1720767134247,1.498838,57361.0,57360.0,0.0811]
[1720767136739,1.15017,57361.0,57360.0,0.1931]
[1720767136948,0.075,57361.0,57360.0,0.2556]
[1720767137104,0.2035,57368.0,57367.0,0.112]
[1720767137369,0.174322,57365.0,57364.0,0.112]
[1720767137571,0.174322,57365.0,57363.0,0.2572]
[1720767137572,0.522975,57364.0,57363.0,0.2572]
[1720767137775,0.622975,57364.0,57363.0,0.2572]
[1720767137993,0.87167,57361.0,57360.0,0.0661]
[1720767138195,1.17517,57361.0,57360.0,0.0661]
[1720767138401,1.17517,57361.0,57360.0,0.1781]
[1720767138605,0.826502,57361.0,57360.0,0.1781]
[1720767138805,0.623002,57361.0,57360.0,0.1781]
[1720767139011,0.623002,57361.0,57360.0,0.2564]
[1720767140071,0.623002,57361.0,57360.0,0.2574]
[1720767140402,0.623002,57361.0,57360.0,0.2584]
[1720767141006,0.97167,57361.0,57360.0,0.2584]
[1720767141335,0.623002,57361.0,57360.0,0.2584]
[1720767141719,0.97167,57361.0,57360.0,0.2584]
[1720767142076,0.97167,57361.0,57360.0,0.1464]
[1720767142287,0.97167,57361.0,57360.0,0.2584]
[1720767142521,0.623002,57361.0,57360.0,0.2584]
[1720767143186,0.97167,57361.0,57360.0,0.2584]
[1720767143599,0.623002,57361.0,57360.0,0.2584]
[1720767144004,0.97167,57361.0,57360.0,0.2584]
[1720767144389,0.623002,57361.0,57360.0,0.2584]
[1720767150320,0.623002,57361.0,57360.0,0.259313]
[1720767150455,0.623002,57361.0,57360.0,0.207313]
[1720767150666,0.623002,57361.0,57360.0,0.147313]
[1720767150933,0.623002,57361.0,57360.0,0.259313]
[1720767151110,0.623002,57361.0,57360.0,0.147313]
[1720767151460,0.97167,57361.0,57360.0,0.147313]
[1720767151667,1.61028969,57361.0,57360.0,0.002913]
[1720767152202,1.523838,57361.0,57360.0,0.002913]
[1720767152431,1.523838,57361.0,57359.0,0.009108]
[1720767152432,0.971687,57360.0,57359.0,0.009108]
[1720767152642,0.523084,57352.0,57347.0,0.58998611]
[1720767152839,0.523084,57352.0,57347.0,0.1913]
[1720767152840,1.42403,57352.0,57347.0,0.1913]
[1720767153041,1.52403,57352.0,57348.0,0.112]
[1720767153858,1.52803,57352.0,57347.0,0.1913]
[1720767154064,1.184307,57352.0,57351.0,0.061]
[1720767154435,1.179307,57352.0,57351.0,0.061]
[1720767154561,1.179307,57352.0,57351.0,0.002]
[1720767154562,1.185307,57352.0,57351.0,0.002]
[1720767154788,1.185307,57352.0,57351.0,0.2566]
[1720767154999,0.981807,57352.0,57351.0,0.2566]
[1720767155626,0.977807,57352.0,57351.0,0.2566]
[1720767156055,0.983807,57352.0,57351.0,0.2566]
[1720767156270,0.117,57352.0,57351.0,0.2566]
[1720767156455,0.185361,57352.0,57351.0,0.2566]
[1720767156658,0.274361,57352.0,57351.0,0.2566]
[1720767156796,0.283361,57352.0,57351.0,0.2566]
[1720767157000,0.632084,57352.0,57351.0,0.2566]
[1720767157423,0.623084,57352.0,57351.0,0.1446]
[1720767157637,0.6226395,57352.0,57351.0,0.1446]
[1720767157837,0.6206395,57352.0,57351.0,0.1446]
[1720767158191,0.6216395,57352.0,57351.0,0.1476]
[1720767158357,0.9703625,57352.0,57351.0,0.1476]
[1720767158793,0.9683625,57352.0,57351.0,0.1476]
[1720767159454,1.56762247,57352.0,57351.0,0.004]
[1720767159863,1.5205855,57352.0,57351.0,0.008]
[1720767162023,1.1718625,57352.0,57351.0,0.1515]
[1720767162540,1.1718625,57352.0,57351.0,0.1475]
[1720767162720,1.1708625,57352.0,57351.0,0.1445]
[1720767162893,1.1748625,57352.0,57351.0,0.1445]
[1720767163093,1.1798625,57352.0,57351.0,0.2565]
[1720767163297,1.1758625,57352.0,57351.0,0.2565]
[1720767163697,1.1758625,57352.0,57351.0,0.2625]
[1720767163898,1.29132749,57352.0,57351.0,0.1475]
[1720767164074,1.29132749,57352.0,57351.0,0.1445]
[1720767164427,1.29132749,57352.0,57351.0,0.1485]
[1720767164428,1.29232749,57352.0,57351.0,0.1485]
[1720767164742,1.29232749,57352.0,57351.0,0.2605]
[1720767165196,1.29232749,57352.0,57351.0,0.005]
[1720767165610,0.98247226,57352.0,57351.0,0.009]
[1720767166309,1.15683326,57352.0,57351.0,0.009]
[1720767166517,1.15383326,57352.0,57351.0,0.009]
[1720767171137,1.15283326,57352.0,57351.0,0.005]
[1720767171490,1.15283326,57352.0,57351.0,0.006]
[1720767171697,1.15283326,57352.0,57351.0,0.002]
[1720767171902,1.15283326,57352.0,57351.0,0.003]
[1720767172099,1.15283326,57352.0,57351.0,0.002]
[1720767172343,1.50155626,57352.0,57351.0,0.001]
[1720767172552,1.50455626,57352.0,57351.0,0.113]
[1720767172991,1.50755626,57352.0,57351.0,0.113]
[1720767173126,1.50755626,57352.0,57351.0,0.001]
[1720767173339,1.50455626,57352.0,57351.0,0.001]
[1720767173760,1.50155626,57352.0,57351.0,0.003]
[1720767174176,1.50155626,57352.0,57351.0,0.005]
[1720767177681,1.50155626,57352.0,57351.0,0.117]
[1720767178680,1.50155626,57352.0,57351.0,0.005]
[1720767180791,1.50155626,57352.0,57351.0,0.003]
[1720767181245,1.50155626,57352.0,57351.0,0.005]
[1720767181824,1.50155626,57352.0,57351.0,0.003]
[1720767182302,1.50155626,57352.0,57351.0,0.005]
[1720767182732,1.175307,57352.0,57351.0,0.005]
[1720767182933,1.52403,57352.0,57351.0,0.005]
[1720767183429,1.52403,57352.0,57351.0,0.005913]
[1720767183628,1.52486,57352.0,57351.0,0.083513]
[1720767183834,1.32136,57352.0,57351.0,0.083513]
[1720767184032,1.32136,57352.0,57351.0,0.081513]
[1720767184313,1.29636,57352.0,57351.0,0.133513]
[1720767184518,0.00383,57352.0,57351.0,0.258613]
[1720767184725,0.00083,57352.0,57351.0,0.2620998]
[1720767185071,0.00083,57352.0,57351.0,0.258613]
[1720767185072,0.29439988,57352.0,57351.0,0.258613]
[1720767185283,0.64212288,57352.0,57351.0,0.258613]
[1720767185456,0.29339988,57352.0,57351.0,0.256613]
[1720767185841,0.29639988,57352.0,57351.0,0.256613]
[1720767186527,0.29339988,57352.0,57351.0,0.256613]
[1720767186702,0.99084588,57352.0,57351.0,0.256613]
[1720767186907,0.99084588,57352.0,57351.0,0.260613]
[1720767187110,0.99084588,57352.0,57351.0,0.258613]
[1720767187324,0.99084588,57352.0,57351.0,0.256613]
[1720767187528,0.99184588,57352.0,57351.0,0.260613]
[1720767188132,0.12003888,57352.0,57351.0,0.260613]
[1720767188312,0.02003888,57352.0,57351.0,0.260613]
[1720767189462,0.02003888,57352.0,57351.0,0.264613]
[1720767189820,0.02003888,57352.0,57351.0,0.164613]
[1720767192733,0.02003888,57352.0,57351.0,0.241913]
[1720767194875,1.44406888,57352.0,57351.0,0.008]
[1720767196856,1.44406888,57352.0,57351.0,0.004]
[1720767197267,0.871837,57350.0,57349.0,0.08511435]
[1720767197468,0.871837,57350.0,57349.0,0.17662735]
[1720767197806,0.871837,57350.0,57349.0,0.08511435]
[1720767198197,0.971837,57350.0,57349.0,0.08511435]
[1720767198507,1.047637,57350.0,57349.0,0.08511435]
[1720767198696,1.5666094,57350.0,57349.0,0.08511435]
[1720767198923,1.5666094,57350.0,57344.0,0.091513]
[1720767198924,0.0629,57347.0,57344.0,0.091513]
[1720767199153,0.377889,57343.0,57342.0,0.08241212]
[1720767199367,1.075445,57343.0,57342.0,0.009108]
[1720767199580,1.600023,57343.0,57342.0,0.009108]
[1720767200197,1.61823188,57343.0,57342.0,0.009108]
[1720767200411,1.61823188,57343.0,57342.0,0.013108]
[1720767200412,1.79591788,57343.0,57342.0,0.013108]
[1720767200613,1.79591788,57343.0,57342.0,0.078308]
[1720767200614,1.54343188,57343.0,57342.0,0.078308]
[1720767200817,1.54243188,57343.0,57342.0,0.14761212]
[1720767201217,1.55443188,57343.0,57342.0,0.14761212]
[1720767201543,1.20565388,57343.0,57342.0,0.14761212]
[1720767202210,0.85687588,57343.0,57342.0,0.14761212]
[1720767202569,0.85087588,57343.0,57342.0,0.14761212]
[1720767203052,0.85287588,57343.0,57342.0,0.14761212]
[1720767203250,0.84687588,57343.0,57342.0,0.14761212]
[1720767203689,0.84887588,57343.0,57342.0,0.009108]
[1720767204897,0.84887588,57343.0,57342.0,0.08241212]
[1720767208895,0.67448688,57343.0,57342.0,0.23051212]
[1720767209099,0.84887588,57343.0,57342.0,0.23051212]
[1720767209772,0.84887588,57343.0,57342.0,0.08241212]
[1720767214685,0.72687588,57343.0,57342.0,0.08241212]
[1720767214992,1.53972627,57343.0,57342.0,0.009108]
[1720767215393,1.68692627,57343.0,57342.0,0.009108]
[1720767215590,1.57163188,57343.0,57342.0,0.009108]
[1720767216623,1.92040988,57343.0,57342.0,0.009108]
[1720767217036,1.51940251,57343.0,57342.0,0.009108]
[1720767217237,1.42443188,57343.0,57342.0,0.009108]
[1720767218731,1.54673188,57343.0,57342.0,0.009108]
[1720767219067,1.68863188,57343.0,57342.0,0.009108]
[1720767222745,1.85886928,57343.0,57342.0,0.009108]
[1720767223554,1.68863188,57343.0,57342.0,0.009108]
[1720767223984,1.48483188,57343.0,57342.0,0.009108]
[1720767224113,1.68863188,57343.0,57342.0,0.009108]
[1720767226006,2.03740988,57343.0,57342.0,0.009108]
[1720767231543,1.97640988,57343.0,57342.0,0.009108]
[1720767231951,2.02833106,57343.0,57342.0,0.009108]
[1720767232392,1.62763188,57343.0,57342.0,0.009108]
[1720767232706,1.54673188,57343.0,57342.0,0.009108]
[1720767232927,1.54673188,57343.0,57342.0,0.09422235]
[1720767233277,1.54673188,57343.0,57342.0,0.09728588]
[1720767235113,1.19795388,57343.0,57342.0,0.23519]
[1720767235317,0.84917588,57343.0,57342.0,0.23212647]
[1720767235465,0.84917588,57343.0,57342.0,0.30862647]
[1720767236139,0.02220888,57343.0,57342.0,0.30862647]
[1720767236349,0.02220888,57343.0,57342.0,0.36862647]
[1720767236557,0.02220888,57343.0,57342.0,0.89180247]
[1720767236774,0.02220888,57343.0,57342.0,1.24058647]
[1720767236974,0.02020888,57343.0,57342.0,1.24058647]
[1720767237373,0.01820888,57343.0,57342.0,1.24058647]
[1720767237582,0.01820888,57343.0,57342.0,1.24358647]
[1720767237718,0.01920888,57343.0,57342.0,1.59237047]
[1720767237921,0.01820888,57343.0,57342.0,1.68937047]
[1720767238298,0.01820888,57343.0,57342.0,1.89237047]
[1720767238299,0.01920888,57343.0,57342.0,1.89237047]
[1720767238435,0.01920888,57343.0,57342.0,1.89637047]
[1720767238842,0.01920888,57343.0,57342.0,1.89237047]
[1720767239290,0.02020888,57343.0,57342.0,1.89637047]
[1720767239731,0.01820888,57343.0,57342.0,1.88937047]
[1720767239936,0.01920888,57343.0,57342.0,1.89637047]
[1720767240071,0.02020888,57343.0,57342.0,1.69637047]
[1720767240273,0.01920888,57343.0,57342.0,1.69337047]
[1720767240657,0.02020888,57343.0,57342.0,1.69637047]
[1720767240860,0.5,57383.0,57359.0,0.06]
[1720767241088,0.871687,57360.0,57359.0,0.07330412]
[1720767241313,0.523021,57359.0,57358.0,0.13760412]
[1720767241599,0.623021,57359.0,57358.0,0.13760412]
[1720767242152,0.971702,57359.0,57358.0,0.13760412]
[1720767242780,0.971702,57359.0,57358.0,0.13960412]
[1720767243002,0.971702,57359.0,57358.0,0.0663]
[1720767243152,0.797362,57359.0,57358.0,0.0663]
[1720767243366,0.971702,57359.0,57358.0,0.0663]
[1720767243769,0.971702,57359.0,57358.0,0.13960412]
[1720767244243,0.971702,57359.0,57358.0,0.14160412]
[1720767244374,0.971702,57359.0,57358.0,0.0683]
[1720767244593,0.971702,57359.0,57358.0,0.14160412]
[1720767244785,1.053202,57359.0,57358.0,0.14160412]
[1720767245254,1.053202,57359.0,57358.0,0.004]
[1720767245376,1.894664,57359.0,57358.0,0.004]
[1720767245576,1.053202,57359.0,57358.0,0.004]
[1720767245875,1.053202,57359.0,57358.0,0.07730412]
[1720767246202,1.053202,57359.0,57358.0,0.07530412]
[1720767246627,1.053202,57359.0,57358.0,0.07330412]
[1720767247051,1.060202,57359.0,57358.0,0.07330412]
[1720767247252,1.053202,57359.0,57358.0,0.07330412]
[1720767247454,0.52303,57358.0,57357.0,0.07330412]
[1720767247606,0.953362,57355.0,57354.0,0.07330412]
[1720767247813,0.523102,57350.0,57349.0,0.07636765]
[1720767248012,0.604602,57350.0,57349.0,0.07636765]
[1720767248218,0.953337,57350.0,57349.0,0.07636765]
[1720767248418,0.953337,57350.0,57349.0,0.07330412]
[1720767248738,0.604602,57350.0,57349.0,0.07330412]
[1720767249764,0.605602,57350.0,57349.0,0.07830412]
[1720767249902,0.606602,57350.0,57349.0,0.08230412]
[1720767250103,0.257867,57350.0,57349.0,0.08230412]
[1720767250322,0.606602,57350.0,57349.0,0.08230412]
[1720767251143,0.954337,57350.0,57349.0,0.004]
[1720767251345,0.954337,57350.0,57349.0,0.07730412]
[1720767251581,0.955337,57350.0,57349.0,0.08130412]
[1720767254160,0.955337,57350.0,57349.0,0.008]
[1720767254562,1.055337,57350.0,57349.0,0.008]
[1720767254965,1.055337,57350.0,57349.0,0.08130412]
[1720767255972,1.055337,57350.0,57349.0,0.21970412]
[1720767257098,0.706602,57350.0,57349.0,0.21970412]
[1720767257447,0.1835,57350.0,57349.0,0.21970412]
[1720767257755,0.357867,57350.0,57349.0,0.21970412]
[1720767258179,0.1835,57350.0,57349.0,0.21970412]
[1720767258594,0.1835,57350.0,57349.0,0.27970412]
[1720767258595,0.0835,57350.0,57349.0,0.27970412]
[1720767258797,0.0835,57350.0,57349.0,0.21970412]
[1720767259218,0.0835,57350.0,57349.0,0.30481847]
[1720767259861,0.0835,57350.0,57349.0,0.3083055]
[1720767259862,0.002,57350.0,57349.0,0.3083055]
[1720767259997,0.002,57350.0,57349.0,0.37136903]
[1720767261654,0.0835,57350.0,57349.0,0.37136903]
[1720767262123,0.0835,57350.0,57349.0,1.24322103]
[1720767262124,0.002,57350.0,57349.0,1.24322103]
[1720767262347,0.002,57350.0,57349.0,1.96691147]
[1720767262555,0.002,57350.0,57349.0,1.90841147]
[1720767262755,0.002,57350.0,57349.0,1.98991147]
[1720767263391,0.001,57350.0,57349.0,2.33465247]
[1720767263798,0.002,57350.0,57349.0,2.33865247]
[1720767264004,0.001,57350.0,57349.0,2.33465247]
[1720767264382,0.002,57350.0,57349.0,2.34365247]
[1720767264564,0.002,57350.0,57349.0,2.26215247]
[1720767264941,0.001,57350.0,57349.0,1.91984835]
[1720767265122,0.002,57350.0,57349.0,2.26215247]
[1720767266801,0.002,57350.0,57349.0,2.46395406]
[1720767267357,0.002,57350.0,57349.0,2.91269506]
[1720767267991,0.002,57350.0,57349.0,3.01269506]
[1720767269568,0.001,57350.0,57349.0,3.00869506]
[1720767269772,0.00083,57359.0,57358.0,1.640404]
[1720767269992,0.00083,57359.0,57358.0,1.90222247]
[1720767271290,0.00183,57359.0,57358.0,1.91622247]
[1720767271827,0.00183,57359.0,57358.0,1.93022247]
[1720767276176,0.00183,57359.0,57358.0,2.27890947]
[1720767278138,0.00183,57359.0,57358.0,2.29689478]
[1720767284536,0.00183,57359.0,57358.0,2.09689478]
[1720767285596,0.00183,57359.0,57358.0,1.54009343]
[1720767286446,0.00183,57359.0,57358.0,2.18878043]
[1720767286614,0.00183,57359.0,57358.0,2.45398043]
[1720767286813,0.01825436,57366.0,57365.0,1.79805812]
[1720767287016,0.01825436,57366.0,57365.0,2.22810212]
[1720767287236,0.01825436,57366.0,57365.0,2.25110212]
[1720767287816,0.01825436,57366.0,57365.0,2.26510212]
[1720767288077,0.01925436,57366.0,57365.0,2.26510212]